bitfinex/quotes_BTCUSD_20250723
["timestamp","ask_amount","ask_price","bid_price","bid_amount"]
[1753233653017,0.026521,119570.0,119560.0,0.72468768]
[1753233653980,0.00979531,119570.0,119560.0,0.72468768]
[1753233655802,0.00111269,119570.0,119560.0,0.96627881]
[1753233656469,0.00111269,119570.0,119560.0,0.99136381]
[1753233656604,0.00111269,119570.0,119560.0,0.99236381]
[1753233656820,0.00111269,119570.0,119560.0,0.99336381]
[1753233657225,0.00111269,119570.0,119560.0,0.99236381]
[1753233657460,0.00111269,119570.0,119560.0,0.99636381]
[1753233658245,0.00111269,119570.0,119560.0,0.99536381]
[1753233658683,0.00111269,119570.0,119560.0,1.00685783]
[1753233661984,0.00111269,119570.0,119560.0,0.55857361]
[1753233662204,0.00111269,119570.0,119560.0,1.00685783]
[1753233662428,0.03967655,119590.0,119580.0,0.192339]
[1753233662643,0.08286367,119590.0,119580.0,0.66782572]
[1753233662857,0.08286367,119590.0,119580.0,0.69297664]
[1753233663081,0.05547177,119590.0,119580.0,0.69297664]
[1753233663297,0.05334177,119590.0,119580.0,0.66992572]
[1753233663705,0.05334177,119590.0,119580.0,0.67092572]
[1753233664521,0.05334177,119590.0,119580.0,0.67192572]
[1753233664721,0.22894166,119590.0,119580.0,0.67192572]
[1753233665252,0.0617036,119590.0,119580.0,0.67192572]
[1753233667017,0.05334177,119590.0,119580.0,0.67192572]
[1753233667811,0.04498001,119590.0,119580.0,0.67192572]
[1753233668017,0.05334163,119590.0,119580.0,0.67192572]
[1753233668328,0.02848001,119590.0,119580.0,0.67508572]
[1753233668590,0.02011846,119590.0,119580.0,0.67508572]
[1753233668793,0.01156134,119590.0,119580.0,0.67508572]
[1753233669013,0.0032,119590.0,119580.0,0.67508572]
[1753233669240,0.01156127,119590.0,119580.0,0.67508572]
[1753233669670,0.01156127,119590.0,119580.0,0.69078572]
[1753233670097,0.0032,119590.0,119580.0,0.69078572]
[1753233670317,0.0032,119590.0,119580.0,0.70598572]
[1753233671788,0.01992282,119590.0,119580.0,0.69078572]
[1753233672248,0.01156134,119590.0,119580.0,0.67508572]
[1753233673894,0.01992282,119590.0,119580.0,0.67508572]
[1753233674096,0.01156134,119590.0,119580.0,0.67508572]
[1753233674607,0.01156134,119590.0,119580.0,0.45094361]
[1753233674943,0.0032,119590.0,119580.0,0.67508572]
[1753233676103,0.0032,119590.0,119580.0,0.69038572]
[1753233676750,0.0032,119590.0,119580.0,0.70548572]
[1753233677799,0.0032,119590.0,119580.0,0.72293474]
[1753233679242,0.0032,119590.0,119580.0,0.74801474]
[1753233679845,0.0032,119590.0,119580.0,0.74701474]
[1753233680058,0.0032,119590.0,119580.0,1.02315685]
[1753233680704,0.0032,119590.0,119580.0,0.79701474]
[1753233680907,0.0032,119590.0,119580.0,0.61753474]
[1753233681110,0.0032,119590.0,119580.0,0.74597474]
[1753233681313,0.0032,119590.0,119580.0,0.74897474]
[1753233681532,0.0032,119590.0,119580.0,0.75197474]
[1753233683106,0.06111624,119610.0,119600.0,0.19230684]
[1753233683314,0.05503327,119610.0,119600.0,0.62936625]
[1753233683550,0.05503327,119610.0,119600.0,0.63153625]
[1753233683752,0.04667319,119610.0,119600.0,0.63153625]
[1753233683961,0.03307325,119610.0,119600.0,0.63153625]
[1753233684370,0.01757325,119610.0,119600.0,0.63153625]
[1753233684586,0.01757325,119610.0,119600.0,0.63460625]
[1753233685681,0.03429334,119610.0,119600.0,0.63460625]
[1753233685881,0.03429334,119610.0,119600.0,0.63153625]
[1753233685882,0.05009327,119610.0,119600.0,0.63153625]
[1753233686199,0.04173319,119610.0,119600.0,0.63153625]
[1753233686414,0.05009327,119610.0,119600.0,0.63153625]
[1753233686804,0.0500932,119610.0,119600.0,0.63153625]
[1753233687004,0.05845328,119610.0,119600.0,0.63153625]
[1753233687206,0.0668135,119610.0,119600.0,0.63153625]
[1753233687408,0.05845328,119610.0,119600.0,0.63153625]
[1753233687641,0.0720535,119610.0,119600.0,0.63153625]
[1753233688004,0.08041386,119610.0,119600.0,0.63153625]
[1753233688969,0.230904,119610.0,119600.0,0.42265982]
[1753233689174,0.230904,119610.0,119600.0,0.44557251]
[1753233689388,0.230904,119610.0,119600.0,0.66135384]
[1753233690240,0.230904,119610.0,119600.0,0.66971462]
[1753233691766,0.06369391,119610.0,119600.0,0.67807533]
[1753233691969,0.07205434,119610.0,119600.0,0.67807533]
[1753233692478,0.23926443,119610.0,119600.0,0.67807533]
[1753233693427,0.07205434,119610.0,119600.0,0.67807533]
[1753233694120,0.23926443,119610.0,119600.0,0.67807533]
[1753233694752,0.07205434,119610.0,119600.0,0.67807533]
[1753233695407,0.00107325,119610.0,119600.0,0.90438744]
[1753233695614,0.00107325,119610.0,119600.0,0.69831533]
[1753233696037,0.00107325,119610.0,119600.0,1.49840646]
[1753233696243,0.00107325,119610.0,119600.0,1.52347946]
[1753233696446,0.00107325,119610.0,119600.0,1.34503946]
[1753233696624,0.00107325,119610.0,119600.0,1.47343946]
[1753233697688,0.00107325,119610.0,119600.0,1.47443946]
[1753233697919,0.0002,119630.0,119620.0,0.2097237]
[1753233698138,0.0002,119630.0,119620.0,0.71230042]
[1753233698621,0.0002,119630.0,119620.0,0.73808042]
[1753233699462,0.0002,119630.0,119620.0,0.74008042]
[1753233700095,0.0002,119630.0,119620.0,0.51593831]
[1753233700309,0.0002,119630.0,119620.0,0.51893831]
[1753233702260,0.0002,119630.0,119620.0,0.48769831]
[1753233702486,0.04554854,119630.0,119620.0,0.46191831]
[1753233702695,0.04554854,119630.0,119620.0,0.68389042]
[1753233703326,0.04554854,119630.0,119620.0,0.55533042]
[1753233703553,0.05390722,119630.0,119620.0,0.68385042]
[1753233703975,0.06226597,119630.0,119620.0,0.5378814]
[1753233704183,0.05390722,119630.0,119620.0,0.6664014]
[1753233704394,0.03719,119630.0,119620.0,0.6664014]
[1753233705321,0.03719,119630.0,119620.0,0.6684814]
[1753233705530,0.0002,119630.0,119620.0,0.6715514]
[1753233711089,0.0002,119630.0,119620.0,0.70520042]
[1753233711291,1e-08,119630.0,119620.0,0.99594253]
[1753233711517,1e-08,119630.0,119620.0,1.02101153]
[1753233711837,1e-08,119630.0,119620.0,0.79686942]
[1753233712822,1e-08,119630.0,119620.0,0.8055677]
[1753233713380,1e-08,119630.0,119620.0,0.79686942]
[1753233715679,0.0002,119640.0,119630.0,0.46583703]
[1753233715878,0.0002,119640.0,119630.0,0.68386433]
[1753233716283,0.0002,119640.0,119630.0,0.70893333]
[1753233716794,0.0002,119640.0,119630.0,0.71093333]
[1753233717964,0.0002,119640.0,119630.0,0.71193333]
[1753233718921,0.03414,119640.0,119630.0,0.70898333]
[1753233719128,0.03414,119640.0,119630.0,0.70894333]
[1753233719129,0.03719,119640.0,119630.0,0.70894333]
[1753233719299,0.03719,119640.0,119630.0,0.68387433]
[1753233719970,0.05390575,119640.0,119630.0,0.73642531]
[1753233720187,0.05390575,119640.0,119630.0,0.86490531]
[1753233720538,0.06226387,119640.0,119630.0,0.86490531]
[1753233720844,0.07062213,119640.0,119630.0,0.86490531]
[1753233721040,0.05390575,119640.0,119630.0,0.86490531]
[1753233721226,0.04554777,119640.0,119630.0,0.86490531]
[1753233721830,0.05390561,119640.0,119630.0,0.86490531]
[1753233722047,0.06226359,119640.0,119630.0,0.86490531]
[1753233722250,0.05390561,119640.0,119630.0,0.6407632]
[1753233722455,0.06226366,119640.0,119630.0,0.86490531]
[1753233722630,0.05390561,119640.0,119630.0,0.86490531]
[1753233722835,0.06226366,119640.0,119630.0,0.86490531]
[1753233723849,0.05390561,119640.0,119630.0,0.6407632]
[1753233724080,0.05390561,119640.0,119630.0,0.86490531]
[1753233724620,0.05390561,119640.0,119630.0,0.6407632]
[1753233724832,0.07897962,119640.0,119630.0,0.6407632]
[1753233725043,0.07897969,119640.0,119630.0,0.86490531]
[1753233725675,0.07897969,119640.0,119630.0,0.6407632]
[1753233725902,0.07897969,119640.0,119630.0,0.86490531]
[1753233726109,0.07897962,119640.0,119630.0,0.86490531]
[1753233726321,0.0706215,119640.0,119630.0,0.86490531]
[1753233726610,0.06226352,119640.0,119630.0,0.86490531]
[1753233726822,0.06226359,119640.0,119630.0,0.86490531]
[1753233727019,0.03719,119640.0,119630.0,0.86490531]
[1753233727230,0.04554777,119640.0,119630.0,0.86490531]
[1753233728310,0.05390561,119640.0,119630.0,0.86490531]
[1753233728538,0.04554777,119640.0,119630.0,0.86490531]
[1753233728731,0.05390568,119640.0,119630.0,0.86490531]
[1753233729009,0.05383443,119640.0,119630.0,0.86490531]
[1753233729241,0.0538345,119640.0,119630.0,0.6407632]
[1753233729411,0.05383443,119640.0,119630.0,0.86490531]
[1753233729626,0.04547652,119640.0,119630.0,0.86490531]
[1753233729838,0.05383443,119640.0,119630.0,0.86490531]
[1753233730050,0.04547652,119640.0,119630.0,0.86490531]
[1753233730220,0.05383443,119640.0,119630.0,0.86490531]
[1753233730809,0.06219248,119640.0,119630.0,0.86490531]
[1753233731009,0.05383443,119640.0,119630.0,0.86490531]
[1753233731214,0.06219248,119640.0,119630.0,0.86490531]
[1753233731638,0.07055074,119640.0,119630.0,0.86490531]
[1753233732200,0.07890907,119640.0,119630.0,0.87326399]
[1753233732629,0.24607787,119640.0,119630.0,0.87326399]
[1753233732851,0.0705513,119640.0,119630.0,0.87326399]
[1753233733591,0.23771947,119640.0,119630.0,0.87326399]
[1753233733812,0.24607787,119640.0,119630.0,0.87326399]
[1753233734050,0.23771996,119640.0,119630.0,0.49556577]
[1753233734265,0.22100365,119640.0,119630.0,0.3640673]
[1753233734462,0.22100365,119640.0,119630.0,0.53124944]
[1753233734679,0.22100365,119640.0,119630.0,0.53960854]
[1753233735541,0.22100365,119640.0,119630.0,0.3640673]
[1753233742486,0.22100365,119640.0,119630.0,0.2355473]
[1753233742693,0.56100365,119640.0,119630.0,0.3639473]
[1753233742905,0.56100365,119640.0,119630.0,0.33196]
[1753233743853,0.56100365,119640.0,119630.0,0.1314]
[1753233744638,0.78514576,119640.0,119630.0,0.1314]
[1753233745681,0.78514576,119640.0,119630.0,0.1294]
[1753233746067,1.18514576,119640.0,119630.0,0.1294]
[1753233746757,1.18514576,119640.0,119630.0,0.1284]
[1753233746972,0.96100365,119640.0,119630.0,0.1284]
[1753233748059,0.96100365,119640.0,119630.0,0.14124]
[1753233748721,0.96200365,119640.0,119630.0,0.1284]
[1753233749602,0.96300365,119640.0,119630.0,0.1284]
[1753233751415,1.18714576,119640.0,119630.0,0.1284]
[1753233751620,0.98752862,119640.0,119630.0,0.1284]
[1753233752901,0.9960798,119640.0,119630.0,0.1284]
[1753233753714,0.9960798,119640.0,119630.0,0.14124]
[1753233755564,0.9960798,119640.0,119630.0,0.1284]
[1753233756232,0.55300483,119640.0,119630.0,0.53859224]
[1753233756447,0.02739596,119640.0,119630.0,0.56672842]
[1753233756639,0.01903784,119640.0,119630.0,0.65120572]
[1753233756911,0.02739589,119640.0,119630.0,0.65120572]
[1753233757147,0.03475415,119640.0,119630.0,0.65120572]
[1753233757363,0.21028065,119640.0,119630.0,0.42706361]
[1753233757576,0.05047088,119640.0,119630.0,0.65120572]
[1753233757797,0.21763905,119640.0,119630.0,0.65120572]
[1753233758477,0.04211248,119640.0,119630.0,0.65120572]
[1753233758953,0.03375408,119640.0,119630.0,0.65120572]
[1753233759169,0.02539582,119640.0,119630.0,0.65120572]
[1753233759460,0.03375387,119640.0,119630.0,0.65120572]
[1753233759710,0.04211206,119640.0,119630.0,0.65120572]
[1753233759958,0.05047032,119640.0,119630.0,0.45905091]
[1753233760216,0.04211206,119640.0,119630.0,0.68319302]
[1753233760885,0.03375387,119640.0,119630.0,0.68319302]
[1753233761339,0.04211206,119640.0,119630.0,0.68319302]
[1753233761858,0.05047039,119640.0,119630.0,0.68319302]
[1753233762080,0.05047032,119640.0,119630.0,0.68319302]
[1753233763704,0.21763891,119640.0,119630.0,0.68319302]
[1753233763926,0.21763933,119640.0,119630.0,0.4506923]
[1753233764136,0.23511309,119640.0,119630.0,0.42255577]
[1753233764336,0.23833309,119640.0,119630.0,0.43091459]
[1753233764707,0.23511309,119640.0,119630.0,0.43091459]
[1753233765506,0.2183965,119640.0,119630.0,0.42255577]
[1753233765701,0.2132581,119640.0,119630.0,0.0319873]
[1753233765906,0.2132581,119640.0,119630.0,0.1603873]
[1753233769344,0.2132581,119640.0,119630.0,0.33805854]
[1753233769831,0.2132581,119640.0,119630.0,0.1625173]
[1753233770031,0.2132581,119640.0,119630.0,0.32969944]
[1753233770236,0.2132581,119640.0,119630.0,0.33805854]
[1753233770461,0.21318741,119640.0,119630.0,0.33805854]
[1753233771800,0.21318741,119640.0,119630.0,0.1625173]
[1753233772206,0.21318741,119640.0,119630.0,0.32969944]
[1753233772616,0.21318741,119640.0,119630.0,0.33805854]
[1753233773893,0.21318741,119640.0,119630.0,0.1625173]
[1753233774329,0.21318741,119640.0,119630.0,0.33805847]
[1753233774978,0.21318741,119640.0,119630.0,0.34641743]
[1753233776057,0.20996741,119640.0,119630.0,0.34641743]
[1753233777329,0.20996741,119640.0,119630.0,0.1625173]
[1753233777538,0.21318741,119640.0,119630.0,0.1625173]
[1753233779354,0.21318741,119640.0,119630.0,0.33805847]
[1753233779975,0.21318741,119640.0,119630.0,0.32969944]
[1753233780769,0.21318741,119640.0,119630.0,0.1625173]
[1753233780988,0.21318741,119640.0,119630.0,0.0319873]
[1753233781196,0.43732952,119640.0,119630.0,0.1603873]
[1753233782034,0.21318741,119640.0,119630.0,0.1603873]
[1753233783627,0.21318741,119640.0,119630.0,0.1284]
[1753233784794,0.21287776,119640.0,119630.0,0.1284]
[1753233785396,0.21208529,119640.0,119630.0,0.1284]
[1753233789033,0.4362274,119640.0,119630.0,0.1284]
[1753233790534,0.21208529,119640.0,119630.0,0.1284]
[1753233791581,0.4362274,119640.0,119630.0,0.1284]
[1753233792291,0.21208529,119640.0,119630.0,0.1284]
[1753233792945,0.2065411,119630.0,119620.0,0.0319873]
[1753233793157,0.77568321,119630.0,119620.0,0.1603873]
[1753233793367,0.77568321,119630.0,119620.0,0.1583873]
[1753233793597,0.77568321,119630.0,119620.0,0.0299873]
[1753233793831,0.77568321,119630.0,119620.0,0.0279873]
[1753233794049,0.77568321,119630.0,119620.0,0.1563873]
[1753233794259,0.77568321,119630.0,119620.0,0.1573873]
[1753233794683,0.77568321,119630.0,119620.0,0.1593873]
[1753233795247,1.17568321,119630.0,119620.0,0.1593873]
[1753233795899,1.17573227,119630.0,119620.0,0.1593873]
[1753233797249,0.95159016,119630.0,119620.0,0.1593873]
[1753233797466,1.17573227,119630.0,119620.0,0.1593873]
[1753233798329,1.17573227,119630.0,119620.0,0.1314]
[1753233803030,1.17573227,119630.0,119620.0,0.1304]
[1753233803614,1.17573227,119630.0,119620.0,0.1284]
[1753233805577,0.86020957,119630.0,119620.0,0.1284]
[1753233805993,1.26020957,119630.0,119620.0,0.1284]
[1753233807367,1.26120957,119630.0,119620.0,0.1284]
[1753233809228,1.26220957,119630.0,119620.0,0.1284]
[1753233810604,1.03806746,119630.0,119620.0,0.1284]
[1753233810809,0.1839306,119610.0,119600.0,0.0279873]
[1753233811023,0.1839306,119610.0,119600.0,0.1583573]
[1753233811228,0.1839306,119610.0,119600.0,0.1614873]
[1753233811983,0.1839306,119610.0,119600.0,0.1624873]
[1753233812398,0.1839306,119610.0,119600.0,0.1644873]
[1753233813816,0.1839306,119610.0,119600.0,0.33171138]
[1753233814020,0.1839306,119610.0,119600.0,0.1644873]
[1753233818949,0.1839306,119610.0,119600.0,0.1613573]
[1753233819183,0.1839306,119610.0,119600.0,0.41296952]
[1753233819902,0.1839306,119610.0,119600.0,0.5801936]
[1753233820538,0.1839306,119610.0,119600.0,0.59995579]
[1753233821168,0.51556844,119620.0,119610.0,0.16721009]
[1753233821379,0.52392824,119620.0,119610.0,0.01837]
[1753233821583,0.52392824,119620.0,119610.0,0.00501]
[1753233821795,0.52392824,119620.0,119610.0,0.25662222]
[1753233821992,0.52392824,119620.0,119610.0,0.28460952]
[1753233822402,0.52392824,119620.0,119610.0,0.28156952]
[1753233823194,0.52392824,119620.0,119610.0,0.44877961]
[1753233823450,0.52392824,119620.0,119610.0,0.46854026]
[1753233823861,0.52392824,119620.0,119610.0,0.20856775]
[1753233824052,0.52392824,119620.0,119610.0,0.45181961]
[1753233824354,0.1672364,119630.0,119620.0,0.17555578]
[1753233824553,0.53230773,119630.0,119620.0,0.54929834]
[1753233824709,0.53230773,119630.0,119620.0,0.560698]
[1753233825119,0.52394905,119630.0,119620.0,0.56069814]
[1753233825402,0.52394905,119630.0,119620.0,0.5690578]
[1753233825620,0.52494905,119630.0,119620.0,0.58577691]
[1753233825788,0.52494905,119630.0,119620.0,0.59413629]
[1753233826036,0.52594905,119630.0,119620.0,0.59413629]
[1753233827151,0.35876663,119630.0,119620.0,0.5941358]
[1753233827381,0.5426669,119630.0,119620.0,0.34252358]
[1753233827905,0.5426669,119630.0,119620.0,0.33416427]
[1753233828117,0.5426669,119630.0,119620.0,0.58571251]
[1753233828340,0.53430822,119630.0,119620.0,0.57735313]
[1753233828547,0.52594933,119630.0,119620.0,0.57735313]
[1753233828980,0.5175903,119630.0,119620.0,0.38507824]
[1753233829462,0.5262912,119630.0,119620.0,0.1565073]
[1753233829699,0.5262912,119630.0,119620.0,0.0279873]
[1753233829700,0.76858214,119630.0,119620.0,0.0279873]
[1753233829954,0.76858214,119630.0,119620.0,0.1563873]
[1753233831882,0.85305944,119630.0,119620.0,0.0279873]
[1753233832619,1.25305944,119630.0,119620.0,0.0279873]
[1753233832849,0.85305944,119630.0,119620.0,0.0279873]
[1753233833332,0.18396137,119590.0,119580.0,0.0279873]
[1753233833548,0.20172137,119590.0,119580.0,0.1563873]
[1753233834043,0.20465137,119590.0,119580.0,0.13037]
[1753233834532,0.21995137,119590.0,119580.0,0.13037]
[1753233834744,0.22000041,119590.0,119580.0,0.13037]
[1753233836185,0.22000041,119590.0,119580.0,0.13337]
[1753233836414,0.22000041,119590.0,119580.0,0.1314]
[1753233837936,0.56000041,119590.0,119580.0,0.1314]
[1753233840349,0.91208135,119590.0,119580.0,0.003]
[1753233840560,0.99655865,119590.0,119580.0,0.003]
[1753233841819,0.5156145,119580.0,119570.0,0.1565073]
[1753233842045,0.9488745,119580.0,119570.0,0.1565073]
[1753233842255,0.9518045,119580.0,119570.0,0.1565073]
[1753233844293,0.9518045,119580.0,119570.0,0.1575073]
[1753233845711,0.96016689,119580.0,119570.0,0.29875603]
[1753233845987,0.52397689,119580.0,119570.0,0.30179603]
[1753233846223,0.5156145,119580.0,119570.0,0.31852256]
[1753233846459,0.50725204,119580.0,119570.0,0.31852256]
[1753233846692,0.50725204,119580.0,119570.0,0.31548256]
[1753233847877,0.50725204,119580.0,119570.0,0.13149]
[1753233848817,0.50725204,119580.0,119570.0,0.30711933]
[1753233849488,0.50725204,119580.0,119570.0,0.1398533]
[1753233849730,0.50725204,119580.0,119570.0,0.30711933]
[1753233850396,0.50725204,119580.0,119570.0,0.13149]
[1753233851540,0.50725204,119580.0,119570.0,0.30711933]
[1753233851789,0.50725204,119580.0,119570.0,0.33510663]
[1753233852300,0.50725204,119580.0,119570.0,0.1678406]
[1753233852913,0.50725204,119580.0,119570.0,0.1594773]
[1753233853331,0.50922204,119580.0,119570.0,0.1594773]
[1753233858517,0.50922204,119580.0,119570.0,0.32674333]
[1753233858756,0.50725204,119580.0,119570.0,0.32674333]
[1753233858977,0.50725204,119580.0,119570.0,0.1594773]
[1753233859122,0.50922204,119580.0,119570.0,0.1594773]
[1753233859726,0.51229204,119580.0,119570.0,0.1594773]
[1753233860123,0.51229204,119580.0,119570.0,0.1585173]
[1753233860529,0.50922204,119580.0,119570.0,0.1585173]
[1753233860733,0.50922204,119580.0,119570.0,0.33414663]
[1753233861004,0.51561464,119580.0,119570.0,0.34250979]
[1753233861131,0.52397703,119580.0,119570.0,0.34250979]
[1753233861512,0.52397703,119580.0,119570.0,0.35087288]
[1753233861789,0.52397703,119580.0,119570.0,0.33414663]
[1753233862204,0.52397703,119580.0,119570.0,0.34250986]
[1753233865499,0.51561464,119580.0,119570.0,0.34250986]
[1753233867219,0.51229204,119580.0,119570.0,0.1585173]
[1753233867369,0.54269204,119580.0,119570.0,0.1585173]
[1753233870733,0.54269204,119580.0,119570.0,0.1565473]
[1753233871827,0.54269204,119580.0,119570.0,0.1585873]
[1753233878074,0.54269204,119580.0,119570.0,0.1565473]
[1753233879383,0.79443967,119580.0,119570.0,0.1565473]
[1753233879882,0.79443967,119580.0,119570.0,0.0289873]
[1753233880091,0.79443967,119580.0,119570.0,0.1574273]
[1753233881360,0.79443967,119580.0,119570.0,0.12944]
[1753233883565,0.54269204,119580.0,119570.0,0.12944]
[1753233884641,0.54269204,119580.0,119570.0,0.38118763]
[1753233885257,0.54269204,119580.0,119570.0,0.12944]
[1753233886430,0.55941703,119580.0,119570.0,0.12944]
[1753233887064,0.55941703,119580.0,119570.0,0.13156]
[1753233887498,0.53233921,119580.0,119570.0,0.57345532]
[1753233887752,0.53233921,119580.0,119570.0,0.5818182]
[1753233887956,0.53233921,119580.0,119570.0,0.59018101]
[1753233889542,0.53233921,119580.0,119570.0,0.53389237]
[1753233889747,0.53233921,119580.0,119570.0,0.54225546]
[1753233890264,0.53233921,119580.0,119570.0,0.56591848]
[1753233890394,0.53233921,119580.0,119570.0,0.57428143]
[1753233890799,0.53233921,119580.0,119570.0,0.55755546]
[1753233890998,0.35672457,119580.0,119570.0,0.58958129]
[1753233891405,0.36508703,119580.0,119570.0,0.58958129]
[1753233892473,0.34836197,119580.0,119570.0,0.58958129]
[1753233893145,0.34836197,119580.0,119570.0,0.61756859]
[1753233894144,0.36508654,119580.0,119570.0,0.61756859]
[1753233894903,0.35672415,119580.0,119570.0,0.61756859]
[1753233895107,0.34841038,119590.0,119580.0,0.23260132]
[1753233895317,0.35677179,119590.0,119580.0,0.5459018]
[1753233895515,0.34841038,119590.0,119580.0,0.5459018]
[1753233895722,4.904e-05,119590.0,119580.0,0.5459018]
[1753233895934,4.904e-05,119590.0,119580.0,0.6743018]
[1753233896605,0.02508248,119600.0,119590.0,0.4320961]
[1753233896798,0.03344354,119600.0,119590.0,0.43729335]
[1753233897955,0.03544354,119600.0,119590.0,0.43729335]
[1753233898297,0.21102882,119600.0,119590.0,0.42129335]
[1753233898512,0.20266811,119600.0,119590.0,0.41293194]
[1753233898749,0.20266811,119600.0,119590.0,0.18915876]
[1753233898953,0.18694634,119600.0,119590.0,0.20585444]
[1753233899183,0.18909634,119600.0,119590.0,0.20585444]
[1753233899393,0.18909634,119600.0,119590.0,0.2142162]
[1753233899599,0.20778634,119600.0,119590.0,0.22257789]
[1753233900008,0.20778634,119600.0,119590.0,0.23093951]
[1753233901885,0.20778634,119600.0,119590.0,0.23930092]
[1753233901886,0.01972191,119600.0,119590.0,0.23930092]
[1753233902395,0.01972191,119600.0,119590.0,0.24223092]
[1753233903963,0.19530719,119600.0,119590.0,0.24223092]
[1753233904179,0.01972191,119600.0,119590.0,0.24223092]
[1753233905915,0.02808304,119600.0,119590.0,0.24223092]
[1753233906780,0.19530712,119600.0,119590.0,0.23386951]
[1753233907182,0.19530712,119600.0,119590.0,0.23093951]
[1753233909515,0.19530712,119600.0,119590.0,0.23930106]
[1753233909650,0.19530712,119600.0,119590.0,0.23930071]
[1753233910195,0.19530712,119600.0,119590.0,0.23093923]
[1753233910973,0.19530712,119600.0,119590.0,0.23930071]
[1753233911156,0.02808304,119600.0,119590.0,0.23930071]
[1753233911370,0.01972142,119600.0,119590.0,0.23930036]
[1753233911571,0.03644347,119600.0,119590.0,0.23930036]
[1753233912681,0.03644347,119600.0,119590.0,0.24228036]
[1753233914343,0.0448046,119600.0,119590.0,0.24228036]
[1753233914546,0.21202868,119600.0,119590.0,0.24228036]
[1753233914755,0.21202868,119600.0,119590.0,0.03323455]
[1753233914923,0.20366804,119600.0,119590.0,0.03025455]
[1753233915334,0.20066804,119600.0,119590.0,0.03025455]
[1753233915542,0.20166804,119600.0,119590.0,0.03025455]
[1753233915864,0.20630627,119600.0,119590.0,0.03025455]
[1753233916075,0.44537945,119600.0,119590.0,0.02813455]
[1753233916286,0.22160627,119600.0,119590.0,0.15649455]
[1753233922628,0.22160627,119600.0,119590.0,0.12850725]
[1753233928346,0.22160627,119600.0,119590.0,0.00014725]
[1753233928552,0.22160627,119600.0,119590.0,0.12846725]
[1753233929163,0.22160627,119600.0,119590.0,0.00014725]
[1753233929164,0.78537945,119600.0,119590.0,0.00014725]
[1753233929374,0.86985675,119600.0,119590.0,0.12846725]
[1753233931638,0.64608357,119600.0,119590.0,0.12846725]
[1753233931876,0.86985675,119600.0,119590.0,0.12846725]
[1753233937737,0.86985675,119600.0,119590.0,0.00014725]
[1753233941149,0.64608357,119600.0,119590.0,0.00014725]
[1753233941354,0.86985675,119600.0,119590.0,0.00014725]
[1753233942475,1.23935895,119600.0,119590.0,0.00014725]
[1753233943501,1.01558577,119600.0,119590.0,0.00014725]
[1753233954532,1.23935895,119600.0,119590.0,0.00014725]
[1753233954921,1.01458577,119600.0,119590.0,0.00014725]
[1753233955182,1.01658577,119600.0,119590.0,0.00014725]
[1753233955682,1.01758577,119600.0,119590.0,0.00014725]
[1753233957628,0.88930577,119600.0,119590.0,0.00014725]
[1753233957815,1.01758577,119600.0,119590.0,0.00014725]
[1753233958582,1.00013675,119600.0,119590.0,0.00014725]
[1753233960187,1.22390993,119600.0,119590.0,0.00014725]
[1753233961183,1.02815907,119600.0,119590.0,0.00014725]
[1753233961808,1.29740359,119600.0,119590.0,0.00014725]
[1753233962440,1.04560809,119600.0,119590.0,0.00014725]
[1753233963216,1.24149431,119600.0,119590.0,0.00014725]
[1753233965246,1.23949431,119600.0,119590.0,0.00014725]
[1753233965459,1.23849431,119600.0,119590.0,0.00014725]
[1753233965672,1.24149431,119600.0,119590.0,0.00014725]
[1753233972550,0.66553259,119600.0,119590.0,0.00014725]
[1753233972774,1.01761345,119600.0,119590.0,0.00014725]
[1753233976087,1.00016443,119600.0,119590.0,0.00014725]
[1753233979866,1.22400529,119600.0,119590.0,0.00014725]
[1753233982084,1.00016443,119600.0,119590.0,0.00014725]
[1753233982719,1.22400529,119600.0,119590.0,0.00014725]
[1753233984333,1.00016443,119600.0,119590.0,0.00014725]
[1753233985397,1.0280975,119600.0,119590.0,0.00014725]
[1753233993204,1.04554652,119600.0,119590.0,0.00014725]
[1753234004823,1.29732045,119600.0,119590.0,1e-08]
[1753234009186,1.04554652,119600.0,119590.0,1e-08]
[1753234011593,0.91730652,119600.0,119590.0,1e-08]
[1753234011778,1.01077652,119600.0,119590.0,0.00203001]
[1753234012253,1.01397652,119600.0,119590.0,0.00203001]
[1753234012457,1.01397652,119600.0,119590.0,1e-08]
[1753234013107,1.04517652,119600.0,119590.0,1e-08]
[1753234015490,0.91705652,119600.0,119590.0,1e-08]
[1753234015744,1.04517652,119600.0,119590.0,1e-08]
[1753234020375,1.07898295,119600.0,119590.0,1e-08]
[1753234020601,1.04517652,119600.0,119590.0,1e-08]
[1753234021069,0.79340259,119600.0,119590.0,1e-08]
[1753234021304,1.04517652,119600.0,119590.0,1e-08]
[1753234024777,1.04443167,119600.0,119590.0,1e-08]
[1753234025218,0.79265774,119600.0,119590.0,1e-08]
[1753234025443,1.04443167,119600.0,119590.0,1e-08]
[1753234032457,0.91631167,119600.0,119590.0,1e-08]
[1753234032806,1.04443167,119600.0,119590.0,1e-08]
[1753234034587,0.79265774,119600.0,119590.0,1e-08]
[1753234034788,1.04443167,119600.0,119590.0,1e-08]
[1753234035650,1.2962056,119600.0,119590.0,1e-08]
[1753234037047,1.04443167,119600.0,119590.0,1e-08]
[1753234039298,0.79265774,119600.0,119590.0,1e-08]
[1753234039533,1.04443167,119600.0,119590.0,1e-08]
[1753234041078,0.42740312,119570.0,119560.0,0.20888466]
[1753234041294,0.42740312,119570.0,119560.0,0.2108937]
[1753234041504,0.42740312,119570.0,119560.0,0.2270937]
[1753234042192,0.42740312,119570.0,119560.0,0.2280937]
[1753234042802,0.42740312,119570.0,119560.0,0.2300937]
[1753234043048,0.42740312,119570.0,119560.0,0.16693904]
[1753234046567,0.17562919,119570.0,119560.0,0.16693904]
[1753234046770,0.42740312,119570.0,119560.0,0.16693904]
[1753234048699,0.18393783,119570.0,119560.0,0.16693904]
[1753234048924,0.43571176,119570.0,119560.0,0.16693904]
[1753234051105,0.43571176,119570.0,119560.0,0.33421906]
[1753234051319,0.43571176,119570.0,119560.0,0.16693904]
[1753234054297,0.43571176,119570.0,119560.0,0.16512904]
[1753234056197,0.43571176,119570.0,119560.0,0.14932904]
[1753234061662,0.43571176,119570.0,119560.0,0.13312904]
[1753234062511,0.43876176,119570.0,119560.0,0.13312904]
[1753234063130,0.43876176,119570.0,119560.0,0.00500904]
[1753234063334,0.43876176,119570.0,119560.0,0.13308904]
[1753234063738,0.44085176,119570.0,119560.0,0.00304904]
[1753234063949,0.57367808,119570.0,119560.0,0.13112904]
[1753234064156,0.57367808,119570.0,119560.0,0.00304904]
[1753234064380,1.04175808,119570.0,119560.0,0.00304904]
[1753234066541,1.04175808,119570.0,119560.0,0.00204904]
[1753234067737,1.04175808,119570.0,119560.0,4.904e-05]
[1753234067973,1.04175808,119570.0,119560.0,0.00104904]
[1753234071423,1.04175808,119570.0,119560.0,4.904e-05]
[1753234071641,1.04275808,119570.0,119560.0,4.904e-05]
[1753234071833,1.04375808,119570.0,119560.0,4.904e-05]
[1753234072386,1.03544944,119570.0,119560.0,4.904e-05]